Cogmind - Beta 10.1 @@@ ROGUE MODE // 2020.09.22 @ 22:03:21 Player: MC HELL Result: Destroyed by G-34 Mercenary with Small Laser Performance ------------- Evolutions (0) 0 Regions Visited (1) 200 Robots Destroyed (9) 45 Value Destroyed (101) 101 Prototype IDs (0) 0 Alien Tech Used (0) 0 Bonus (0) 0 TOTAL SCORE: 346 Bonus ------- None Cogmind --------- Core Integrity 0/250 Matter 196/300 Energy 125/125 System Corruption 0% Temperature Cool (40) Movement Core (350) Ox6 Location -10/Materials Parts ------- > --- POWER (1) -------- Light Ion Engine > --- PROPULSION (2) --- (None) > --- UTILITY (2) ------ Large Storage Unit > --- WEAPON (2) ------- Small Laser > --- INVENTORY (10) --- Light Treads Wheel Heat Sink Peak State ------------ > --- POWER ------------ Light Ion Engine > --- PROPULSION ------- Wheel Wheel > --- UTILITY ---------- Small Storage Unit Sensor Array > --- WEAPON ----------- Medium Laser Assault Rifle > --- INVENTORY -------- Light Ion Engine Light Treads Aluminum Leg Aluminum Leg Large Storage Unit Small Laser [Rating: 7] Favorites ----------- Power Light Ion Engine Engine Light Ion Engine Propulsion Wheel Treads Light Treads Leg Aluminum Leg Wheel Wheel Utility Large Storage Unit Device Sensor Array Storage Large Storage Unit Weapon Assault Rifle Energy Gun Medium Laser Ballistic Gun Assault Rifle Slashing Weapon Mining Claw Build | -11 -10 ------- Run | Scr Mat Slots Evolved . | . . Power . | . . Propulsion . | . . Utility . | . . Weapon . | . . Parts Attached 20 | 7 13 Power 2 | 1 1 Engine 2 | 1 1 Core . | . . Reactor . | . . Propulsion 6 | 3 3 Treads 2 | 1 1 Leg 2 | . 2 Wheel 2 | 2 . Hover . | . . Flight . | . . Utility 4 | 1 3 Device 2 | . 2 Storage 2 | 1 1 Processor . | . . Hackware . | . . Protection . | . . Artifact . | . . Weapon 8 | 2 6 Energy Gun 3 | 1 2 Energy Cannon . | . . Ballistic Gun 3 | 1 2 Ballistic Cannon . | . . Launcher . | . . Special Weapon . | . . Impact Weapon . | . . Slashing Weapon 2 | . 2 Piercing Weapon . | . . Special Melee Weapon . | . . Unidentified Prototypes . | . . Parts Lost 10 | . 10 Power 1 | . 1 Propulsion 3 | . 3 Utility 2 | . 2 Weapon 4 | . 4 Highest Loss Streak 8 | . 8 Average Slot Usage (%) 93 | . 93 Engine 13 | . 13 Leg 3 | . 3 Wheel 23 | . 23 Device 9 | . 9 Storage 14 | . 14 Energy Gun 10 | . 10 Ballistic Gun 12 | . 12 Slashing Weapon 4 | . 4 Naked Turns . | . . Heaviest Build 24 | 11 24 Greatest Support 20 | 20 20 Greatest Overweight (x) 6 | 1 6 Average Overweight (x) . | . . Largest Inventory Capacity 10 | 6 10 Average Capacity 8 | 5 8 Most Carried 8 | 6 8 Average Carried 6 | 3 6 Final Capacity 10 | 6 10 Final Carried 5 | 5 3 Class Distribution -------------------- 100% | Mutant Dominant Class ---------------- Mutant | -10/Materials Resources | -11 -10 ----------- Run | Scr Mat Matter Collected 347 | 250 97 Remotely . | . . Salvage Created 210 | 64 146 Parts 15 | . 15 Haulers Intercepted . | . . Recyclers Shooed . | . . Parts Field Recycled . | . . Retrieved Matter . | . . Parts Self-Destructed . | . . Prevented . | . . Kills | -11 -10 ------- Run | Scr Mat Combat Hostiles Destroyed 7 | . 7 Guns 7 | . 7 Classes Destroyed 4 | 1 3 Worker 1 | . 1 Recycler 1 | 1 . Swarmer 6 | . 6 Grunt 1 | . 1 Best Kill Streak 4 | 1 4 Combat Bots Only 3 | . 3 Max Kills in Single Turn 1 | 1 1 Gunslinging . | . . Exploded . | . . Melee . | . . Uniques/NPCs Destroyed . | . . Combat | -11 -10 -------- Run | Scr Mat Damage Taken 1003 | . 1003 Core 252 | . 252 Absorbed by Shields . | . . Core Remaining (%) 100 | 100 . Volleys Fired 49 | 4 45 Largest 2 | 2 2 Hottest 70 | 70 70 Shots Fired 61 | 8 53 Gun 61 | 8 53 Cannon . | . . Launcher . | . . Special . | . . Kinetic 37 | 4 33 Thermal 24 | 4 20 Explosive . | . . Electromagnetic . | . . Robot Hit Streak 11 | 7 11 Robot Miss Streak 3 | 1 3 Penetration Max . | . . Secondary Targets . | . . Shots Hit Robots 43 | 7 36 Core Hits 16 | 2 14 Critical Hits . | . . Critical Kills . | . . Critical Parts Destroyed . | . . Melee Attacks 1 | . 1 Impact . | . . Slashing 1 | . 1 Piercing . | . . Sneak Attacks . | . . Combat Hostiles . | . . Follow-up Attacks . | . . Damage Inflicted 503 | 72 431 Guns 480 | 72 408 Cannons . | . . Explosions . | . . Melee 23 | . 23 Ramming . | . . Kinetic 285 | 34 251 Thermal 195 | 38 157 Explosive . | . . Electromagnetic . | . . Impact . | . . Slashing 23 | . 23 Piercing . | . . Highest Corruption . | . . Average Corruption . | . . Corruption Purged . | . . Overload Shots . | . . Overflow Damage . | . . Projectiles . | . . Explosions . | . . Melee . | . . Knockbacks . | . . Impact . | . . Kinetic . | . . Secondary . | . . Self-Inflicted Damage . | . . Shots . | . . Rammed . | . . Targets Rammed . | . . Kicked . | . . Crushed . | . . Highest Temperature 90 | 36 90 Average Temperature 28 | 19 30 Received Heat Transfer 447 | . 447 Siege Activations . | . . Robots Corrupted . | . . Combat Hostiles . | . . Parts Fried . | . . Impact Corruptions . | . . Robots Melted . | . . Combat Hostiles . | . . Parts Melted 1 | 1 . Heat Transferred 556 | 111 445 Parts Sabotaged . | . . Parts Stolen . | . . Parts Stripped . | . . Power Chain Reactions . | . . Missiles Intercepted . | . . Alert | -11 -10 ------- Run | Scr Mat Peak Influence 226 | 5 226 Initial 3 | . 3 Average 67 | 2 81 Maximum Alert Level 1 | . 1 Low Security (%) 95 | 100 94 Level 1 4 | . 5 Level 2 . | . . Level 3 . | . . Level 4 . | . . Level 5 . | . . High Security . | . . Max Security . | . . Squads Dispatched 3 | . 3 Investigation . | . . Extermination . | . . Reinforcement 3 | . 3 Assault . | . . Garrison . | . . Intercept . | . . Construction Impeded . | . . Haulers Reinforced . | . . Stealth | -11 -10 --------- Run | Scr Mat Distress Signals 1 | . 1 Communications Jammed . | . . Distress Signals . | . . Times Spotted 18 | . 18 Peak Tracking Total 9 | . 9 Tactical Retreats . | . . Traps | -11 -10 ------- Run | Scr Mat Traps Triggered . | . . Indirectly . | . . Trap Hack Attempts . | . . Triggered . | . . Disarmed . | . . Reprogrammed . | . . Reused . | . . Traps Extracted . | . . Installed . | . . Triggered . | . . Machines | -11 -10 ---------- Run | Scr Mat Machines Disabled . | . . Max in Single Turn . | . . Machines Sabotaged . | . . Garrisons Compromised . | . . Overloaded Fab Kills . | . . Fab Network Shutdowns . | . . Hacking | -11 -10 --------- Run | Scr Mat Machines Accessed 1 | . 1 Terminals 1 | . 1 Fabricators . | . . Repair Stations . | . . Recycling Units . | . . Scanalyzers . | . . Garrison Access . | . . Total Hacks 2 | . 2 Successful 2 | . 2 Failed . | . . Catastrophic . | . . Database Lockouts . | . . Manual . | . . Terminals 2 | . 2 Fabricators . | . . Repair Stations . | . . Recycling Units . | . . Scanalyzers . | . . Garrison Access . | . . Terminal Hacks 2 | . 2 Emergency Access Points 1 | . 1 Hauler Manifests 1 | . 1 Fabricator Hacks . | . . Repair Station Hacks . | . . Recycling Unit Hacks . | . . Scanalyzer . | . . Garrison Access Hacks . | . . Unauthorized Hacks . | . . Terminals . | . . Fabricators . | . . Repair Stations . | . . Recycling Units . | . . Scanalyzers . | . . Garrison Access . | . . Data Cores Recovered . | . . Used . | . . Hacking Detections . | . . Full Trace Events . | . . Feedback Events . | . . Feedback Blocked . | . . Robot Schematics Acquired . | . . Robots Built . | . . Matter . | . . Time . | . . Total Robot Build Rating . | . . Part Schematics Acquired . | . . Parts Built . | . . Matter . | . . Time . | . . Total Part Build Rating . | . . Parts Repaired . | . . Time . | . . Parts Recycled . | . . Recycled Matter . | . . Retrieved Matter . | . . Retrieved Components . | . . Parts Scanalyzed . | . . Part Schematics Acquired . | . . Parts Damaged . | . . Bothacking | -11 -10 ------------ Run | Scr Mat Used RIF Installer . | . . Robots Hacked . | . . Non-combat . | . . Combat . | . . Robot Hacks Applied . | . . Relay Couplers Released . | . . Robots Rewired . | . . Allies Hacked . | . . Hacks Repelled . | . . Allies | -11 -10 -------- Run | Scr Mat Total Allies . | . . Largest Group . | . . Highest-Rated Group . | . . Highest-Rated Ally . | . . Total Orders . | . . Ally Attacks . | . . Total Damage . | . . Kills . | . . Allies Corrupted . | . . Allies Melted . | . . Intel | -11 -10 ------- Run | Scr Mat Robot Analysis Total . | . . Derelict Logs Recovered . | . . Drone Launches . | . . Drone Recoveries . | . . Exploration | -11 -10 ------------- Run | Scr Mat Turns Passed 472 | 82 390 Spaces Moved 234 | 34 200 Core 8 | 7 1 Treads 6 | 6 . Legs 7 | . 7 Wheels 213 | 21 192 Hover . | . . Flight . | . . Fastest Speed 50 | 50 80 Average Speed 89 | 93 88 Slowest Speed 350 | 160 350 Overloaded Moves . | . . Propulsion Burnouts . | . . Robots Hopped . | . . Cave-ins Triggered . | . . Exploration Rate (%) 14 | 4 25 Regions Visited 1 Branch Regions . Pre-discovered Areas . | . . Known Exits Taken . | . . Unknown Exits Taken 1 | 1 . Scrap Searched . | . . Spaces Dug . | . . Terrain Destroyed . | . . Melee . | . . Projectile . | . . AOE . | . . Terrain Rammed . | . . Walls Destroyed . | . . Machines Disabled . | . . Actions | -11 -10 --------- Run | Scr Mat Total 431 | 74 357 Wait 112 | 20 92 Move 233 | 33 200 Hop . | . . Pick Up 15 | 10 5 Fast Attach 2 | 1 1 Attach 11 | 5 6 Detach . | . . Swap 7 | 1 6 Drop 1 | . 1 Fire 49 | 4 45 Melee 1 | . 1 Ram . | . . Kick . | . . Crush . | . . Escape Stasis . | . . Rewire . | . . Trap . | . . Miscellaneous . | . . Route ------- -11/Scrapyard -10/Materials History --------- Turn | Location | Event 13 | -11/Scrapyard | Discovered new exit (range 15) 83 | -11/Scrapyard | Entered Materials 311 | -10/Materials | Build established: Mutant 437 | -10/Materials | Core integrity fell below 50% 455 | -10/Materials | Core integrity fell below 20% 473 | -10/Materials | Destroyed by G-34 Mercenary with Small Laser Last Messages --------------- G-47 Trooper destroyed. U-05 Engineer builds a Door. K-01 Serf collects debris. G-34 Mercenary destroyed. K-01 Serf collects debris. Mining Claw destroyed. K-01 Serf collects debris. Assault Rifle destroyed. Aluminum Leg destroyed. K-01 Serf collects debris. R-06 Scavenger collects Lgt. Ion Engine. K-01 Serf collects debris. R-06 Scavenger collects Wheel. K-01 Serf collects debris. Lgt. Assault Rifle destroyed. K-01 Serf collects debris. Aluminum Leg destroyed. K-01 Serf collects debris. Terrain Scanner destroyed. R-06 Scavenger collects Aluminum Leg. Map ----- +----------------------------------------------------+ | ????????????????????????????????????????????? | | ????????????????????????????????????????????? | | ????????????????????????????????????????????? | | ????????????????????????????????????????????? | | ????????????????????#########???????????????? | | ????????????????????# !! ??????????????? | | ????????????????????# ] ??????????????? | | ????????????????????# ????????????? | | ???????????????????? ????????????? | | ????????????????????# ????????????? | | ????????????????????# ????????????? | | ????????????????????# ? ???????? | | ????????????????????# ???????? | | ????????????????????# ??????? | | ???????????????#????# """ ??????? | | ????????????????????# """ ?????? | | ??????????########??# """ ????? | | ??????????# #### """ ????? | | ??????????# + ????? | | ??????????# ##### = ""???????? | | ??????????# "T" #???# ###"T"## ""???????? | | ??????????# """ #???# r #??####????????????? | | ??????????# #???# g #??????????????????? | | ??????????####+#######=%*#??????????????????? | | ??????????# *%k%g#??????????????????? | | ??????????# @!kg #??????????????????? | | ??????????# =%[ #??????????????????? | | ????????#?###########+####??#???????????????? | | ??????????????????# #??????????????????? | | ??????????????????# """ #??????????????????? | | ??????????????????# """ #?????#????????????? | | ?????????????????## """ #??????????????????? | | ??????????????????# #??????????????????? | | ??????????????????# #??????????????????? | | ??????????????????##+#####??????????????????? | | ???????????????????# #??????????????????????? | | ????????????????#??# #??????????????????????? | | ?##########????????# #??????????????????????? | | ?# #??????### ##?????????????????????? | | ?# """ ######## #?????????????????????? | | ?# """ # ## #?????????????????????? | | ?# """ # "" ## #?????????????????????? | | ?# + "" ## #?????????????????????? | | ?# """ # "T ### ##?????????????????????? | | ?# """ # "" #?# #??????????????????????? | | ?# """ # "" #?# #??????????????????????? | | ?# # #?# #??????????????????????? | | ?#######+####+##### #??????????????????????? | | ?????# #??????????????????????? | | ?????# #??????????????????????? | +----------------------------------------------------+ Best States ------------- Heat Dissipation 25 Energy Generation 10 Energy Capacity 125 Matter Stores 268 Matter Capacity 300 Sight Range 16 Robot Scan Range 10 Terrain Scan Range 14 Terrain Scan Density 10 Evasion (%) 44 Recoil Reduction 1 Item Schematics ----------------- None Robot Schematics ------------------ None Fabricated ------------ Nothing Alien Tech Used ----------------- None Achievements -------------- None Challenges ------------ None Game ------ Seed TachyonCoolingUnit Manual? 0 Play Time 00:07:04 Cumulative 9.0 hours Start 2020.09.22 @ 21:57:48 End 2020.09.22 @ 22:03:21 Sessions 1 Manual Loads 0 Difficulty Rogue Special Mode None Game No. 18 Rogue 18 Adventurer 0 Explorer 0 Win Type - Total 0 Types 0/0/0/0/0/0/0/0/0 Lore% 20 Gallery% 20 Achievement% 14 Wizard Run 0 Options --------- ASCII 0 Keyboard 0 Movement Mouse Keybinds 0 Fullscreen 1 Font 24/Smallcaps Map View 76x50 Tactical HUD 0 Map Filters NONE Filters NONE Steam 1 RUN: 63f7726a-ae1c-49fb-b370-cb97c5a09729